fUSD/lending_fUSD_20240113
["ID","MTS","AMOUNT","RATE_DAILY","PERIOD"]
[311494630,1705163444498,-500.0,0.00022261,2]
[311494631,1705163444507,-500.0,0.00022261,2]
[311494632,1705163444516,-500.0,0.00022261,2]
[311494633,1705163444526,-500.0,0.00022261,2]
[311494634,1705163444535,-500.0,0.00022261,2]
[311494635,1705163444544,-512.62809728,0.00022261,2]
[311494636,1705163444553,-500.0,0.00022261,2]
[311494637,1705163444562,-500.0,0.00022261,2]
[311494638,1705163444571,-479.21006619,0.00022261,2]
[311494639,1705163444582,-507.97,0.00022261,2]
[311494640,1705163444591,-500.0,0.00022261,2]
[311494641,1705163444600,-500.0,0.00022261,2]
[311494642,1705163444609,-500.0,0.00022261,2]
[311494643,1705163444618,-500.0,0.00022261,2]
[311494644,1705163444627,-500.0,0.00022261,2]
[311494645,1705163444636,-500.0,0.00022261,2]
[311494646,1705163444645,-500.0,0.00022261,2]
[311494647,1705163444654,-476.8,0.00022261,2]
[311494648,1705163444663,-500.0,0.00022261,2]
[311494649,1705163444672,-505.72908774,0.00022261,2]
[311494650,1705163444682,-500.0,0.00022261,2]
[311494651,1705163444692,-500.0,0.00022261,2]
[311494652,1705163444701,-500.0,0.00022261,2]
[311494653,1705163444710,-500.0,0.00022261,2]
[311494654,1705163444720,-475.15,0.00022261,2]
[311494655,1705163444730,-405.04,0.00022261,2]
[311494656,1705163444741,-500.0,0.00022261,2]
[311494657,1705163444751,-500.0,0.00022261,2]
[311494658,1705163444760,-345.6,0.00022261,2]
[311494659,1705163444770,-500.0,0.00022261,2]
[311494660,1705163444779,-500.0,0.00022261,2]
[311494661,1705163444789,-500.0,0.00022261,2]
[311494662,1705163444800,-500.0,0.00022261,2]
[311494663,1705163444809,-550.84,0.00022261,2]
[311494664,1705163444819,-500.0,0.00022261,2]
[311494665,1705163444828,-500.0,0.00022261,2]
[311494666,1705163444837,-500.0,0.00022261,2]
[311494667,1705163444846,-500.0,0.00022261,2]
[311494668,1705163444856,-500.0,0.00022261,2]
[311494669,1705163444865,-500.0,0.00022261,2]
[311494670,1705163444875,-500.0,0.00022261,2]
[311494671,1705163444884,-500.0,0.00022261,2]
[311494672,1705163444894,-341.17244285,0.00022261,2]
[311494673,1705163444903,-503.06488819,0.00022261,2]
[311494674,1705163444912,-500.0,0.00022261,2]
[311494675,1705163444922,-500.0,0.00022261,2]
[311494676,1705163444935,-506.3012451,0.00022261,2]
[311494677,1705163444946,-500.0,0.00022261,2]
[311494678,1705163444959,-500.0,0.00022261,2]
[311494679,1705163444969,-500.0,0.00022261,2]
[311494680,1705163444979,-500.0,0.00022261,2]
[311494681,1705163444989,-500.77243426,0.00022261,2]
[311494682,1705163444999,-500.0,0.00022261,2]
[311494683,1705163445009,-500.0,0.00022261,2]
[311494684,1705163445019,-500.0,0.00022261,2]
[311494685,1705163445029,-500.0,0.00022261,2]
[311494686,1705163445039,-164.05,0.00022261,2]
[311494687,1705163445048,-500.0,0.00022261,2]
[311494688,1705163445058,-500.0,0.00022261,2]
[311494689,1705163445067,-500.0,0.00022261,2]
[311494690,1705163445077,-500.0,0.00022261,2]
[311494691,1705163445088,-500.0,0.00022261,2]
[311494692,1705163445098,-405.99599841,0.00022261,2]
[311494693,1705163445107,-500.0,0.00022261,2]
[311494694,1705163445117,-500.0,0.00022261,2]
[311494695,1705163445127,-500.0,0.00022261,2]
[311494696,1705163445137,-500.0,0.00022261,2]
[311494697,1705163445147,-433.34,0.00022261,2]
[311494698,1705163445156,-500.0,0.00022261,2]
[311494699,1705163445167,-500.0,0.00022261,2]
[311494700,1705163445177,-500.0,0.00022261,2]
[311494701,1705163445188,-500.0,0.00022261,2]
[311494702,1705163445199,-500.0,0.00022261,2]
[311494703,1705163445208,-500.0,0.00022261,2]
[311494704,1705163445218,-500.0,0.00022261,2]
[311494705,1705163445228,-360.17,0.00022261,2]
[311494706,1705163445238,-500.0,0.00022261,2]
[311494707,1705163445252,-500.0,0.00022261,2]
[311494708,1705163445262,-500.0,0.00022261,2]
[311494709,1705163445272,-500.0,0.00022261,2]
[311494710,1705163445282,-500.0,0.00022261,2]
[311494711,1705163445291,-500.0,0.00022261,2]
[311494712,1705163445300,-500.0,0.00022261,2]
[311494713,1705163445310,-500.0,0.00022261,2]
[311494714,1705163445319,-414.68460544,0.00022261,2]
[311494715,1705163445330,-500.0,0.00022261,2]
[311494716,1705163445340,-500.0,0.00022261,2]
[311494717,1705163445350,-361.43,0.00022261,2]
[311494718,1705163445360,-500.0,0.00022261,2]
[311494720,1705163445369,-500.0,0.00022261,2]
[311494721,1705163445379,-500.0,0.00022261,2]
[311494722,1705163445390,-500.0,0.00022261,2]
[311494723,1705163445400,-512.49768612,0.00022261,2]
[311494724,1705163445410,-500.0,0.00022261,2]
[311494725,1705163445419,-500.0,0.00022261,2]
[311494727,1705163445431,-512.29123387,0.00022261,2]
[311494728,1705163445442,-500.0,0.00022261,2]
[311494729,1705163445452,-500.0,0.00022261,2]
[311494730,1705163445462,-501.80212466,0.00022261,2]
[311494731,1705163445475,-500.0,0.00022261,2]
[311494732,1705163445485,-500.0,0.00022261,2]
[311494734,1705163445494,-500.0,0.00022261,2]
[311494736,1705163445504,-500.0,0.00022261,2]
[311494738,1705163445514,-500.0,0.00022261,2]
[311494739,1705163445523,-500.0,0.00022261,2]
[311494740,1705163445533,-500.0,0.00022261,2]
[311494741,1705163445545,-500.0,0.00022261,2]
[311494742,1705163445555,-500.0,0.00022261,2]
[311494743,1705163445566,-500.0,0.00022261,2]
[311494744,1705163445577,-500.0,0.00022261,2]
[311494745,1705163445587,-500.0,0.00022261,2]
[311494746,1705163445602,-500.0,0.00022261,2]
[311494747,1705163445612,-500.0,0.00022261,2]
[311494748,1705163445622,-500.0,0.00022261,2]
[311494749,1705163445632,-500.0,0.00022261,2]
[311494750,1705163445641,-500.0,0.00022261,2]
[311494751,1705163445651,-500.0,0.00022261,2]
[311494752,1705163445661,-500.0,0.00022261,2]
[311494753,1705163445670,-194.81,0.00022261,2]
[311494754,1705163445680,-500.0,0.00022261,2]
[311494755,1705163445692,-500.0,0.00022261,2]
[311494756,1705163445703,-510.0,0.00022261,2]
[311494757,1705163445713,-601.33655596,0.00022261,2]
[311494758,1705163445723,-500.0,0.00022261,2]
[311494759,1705163445734,-500.0,0.00022261,2]
[311494760,1705163445744,-500.0,0.00022261,2]
[311494761,1705163445754,-500.0,0.00022261,2]
[311494762,1705163445764,-500.0,0.00022261,2]
[311494763,1705163445774,-500.0,0.00022261,2]
[311494764,1705163445784,-500.0,0.00022261,2]
[311494765,1705163445794,-500.0,0.00022261,2]
[311494766,1705163445805,-500.0,0.00022261,2]
[311494767,1705163445815,-500.0,0.00022261,2]
[311494768,1705163445824,-500.0,0.00022261,2]
[311494769,1705163445834,-500.0,0.00022261,2]
[311494770,1705163445843,-500.0,0.00022261,2]
[311494771,1705163445853,-500.0,0.00022261,2]
[311494772,1705163445862,-500.0,0.00022261,2]
[311494773,1705163445872,-500.0,0.00022261,2]
[311494774,1705163445881,-500.0,0.00022261,2]
[311494775,1705163445891,-500.0,0.00022261,2]
[311494776,1705163445901,-500.0,0.00022261,2]
[311494777,1705163445911,-602.17214415,0.00022261,2]
[311494778,1705163445920,-500.0,0.00022261,2]
[311494779,1705163445930,-500.0,0.00022261,2]
[311494780,1705163445941,-500.0,0.00022261,2]
[311494781,1705163445951,-500.0,0.00022261,2]
[311494782,1705163445961,-500.0,0.00022261,2]
[311494783,1705163445970,-486.98,0.00022261,2]
[311494784,1705163445980,-503.14728538,0.00022261,2]
[311494785,1705163445989,-500.0,0.00022261,2]
[311494786,1705163445999,-500.0,0.00022261,2]
[311494787,1705163446009,-500.0,0.00022261,2]
[311494788,1705163446018,-500.0,0.00022261,2]
[311494789,1705163446027,-630.08,0.00022261,2]
[311494790,1705163446037,-500.0,0.00022261,2]
[311494792,1705163446047,-500.0,0.00022261,2]
[311494794,1705163446056,-462.05,0.00022261,2]
[311494796,1705163446065,-500.0,0.00022261,2]
[311494798,1705163446074,-500.0,0.00022261,2]
[311494800,1705163446083,-500.0,0.00022261,2]
[311494802,1705163446092,-500.0,0.00022261,2]
[311494804,1705163446101,-500.0,0.00022261,2]
[311494806,1705163446111,-500.0,0.00022261,2]
[311494808,1705163446120,-500.0,0.00022261,2]
[311494810,1705163446130,-500.0,0.00022261,2]
[311494812,1705163446139,-573.85,0.00022261,2]
[311494814,1705163446148,-573.85,0.00022261,2]
[311494816,1705163446157,-500.0,0.00022261,2]
[311494818,1705163446167,-573.85,0.00022261,2]
[311494820,1705163446176,-500.0,0.00022261,2]
[311494822,1705163446187,-500.0,0.00022261,2]
[311494824,1705163446197,-500.0,0.00022261,2]
[311494826,1705163446206,-500.0,0.00022261,2]
[311494828,1705163446216,-500.0,0.00022261,2]
[311494830,1705163446226,-573.85,0.00022261,2]
[311494833,1705163446239,-500.0,0.00022261,2]
[311494835,1705163446249,-573.85,0.00022261,2]
[311494837,1705163446262,-500.0,0.00022261,2]
[311494839,1705163446271,-500.0,0.00022261,2]
[311494841,1705163446281,-500.0,0.00022261,2]
[311494843,1705163446290,-500.0,0.00022261,2]
[311494845,1705163446300,-228.0507559,0.00022261,2]
[311494847,1705163446311,-500.0,0.00022261,2]
[311494849,1705163446321,-500.0,0.00022261,2]
[311494851,1705163446331,-500.0,0.00022261,2]
[311494853,1705163446340,-500.0,0.00022261,2]
[311494855,1705163446349,-208.29102954,0.00022261,2]
[311494857,1705163446358,-166.85,0.00022261,2]
[311494859,1705163446367,-500.0,0.00022261,2]
[311494861,1705163446377,-500.0,0.00022261,2]
[311494864,1705163446391,-201.54363446,0.00022261,2]
[311494866,1705163446400,-500.0,0.00022261,2]
[311494868,1705163446411,-500.0,0.00022261,2]
[311494870,1705163446420,-500.0,0.00022261,2]
[311494908,1705163446747,-500.0,0.00022261,2]
[311494910,1705163446757,-159.32962375,0.00022261,2]
[311494912,1705163446767,-500.0,0.00022261,2]
[311494914,1705163446776,-360.28025381,0.00022261,2]
[311494916,1705163446785,-500.0,0.00022261,2]
[311494918,1705163446795,-500.0,0.00022261,2]
[311494920,1705163446804,-429.04,0.00022261,2]
[311494922,1705163446815,-500.0,0.00022261,2]
[311494924,1705163446824,-500.0,0.00022261,2]
[311494926,1705163446833,-500.0,0.00022261,2]
[311494929,1705163446842,-500.0,0.00022261,2]
[311494930,1705163446852,-500.0,0.00022261,2]
[311494933,1705163446862,-505.18932714,0.00022261,2]
[311494935,1705163446871,-500.0,0.00022261,2]
[311494937,1705163446881,-500.0,0.00022261,2]
[311494939,1705163446890,-540.31,0.00022261,2]
[311494941,1705163446899,-540.31,0.00022261,2]
[311494943,1705163446908,-504.34193332,0.00022261,2]
[311494945,1705163446918,-500.0,0.00022261,2]
[311494947,1705163446927,-500.0,0.00022261,2]
[311494949,1705163446937,-478.03876369,0.00022261,2]
[311494993,1705163447326,-318.01504645,0.0002226,2]
[311494995,1705163447338,-181.98495355,0.0002226,2]
[311494997,1705163447349,-21.96123631,0.00022261,2]
[311494999,1705163447358,-136.37980614,0.00022261,2]
[311495001,1705163447370,-363.62019386,0.00022261,2]
[311495003,1705163447379,-211.55691465,0.00022261,2]
[311495005,1705163447390,-288.44308535,0.00022261,2]
[311495008,1705163447400,-500.0,0.00022261,2]
[311495010,1705163447421,-493.58509672,0.00022261,2]
[311495013,1705163447435,-6.41490328,0.00022261,2]
[311495015,1705163447445,-500.0,0.00022261,2]
[311495016,1705163447456,-495.71314229,0.00022261,2]
[311495017,1705163447493,-4.28685771,0.00022261,2]
[311495018,1705163447502,-461.16270003,0.00022261,2]
[311495019,1705163447514,-38.83729997,0.00022261,2]
[311495020,1705163447524,-500.0,0.00022261,2]
[311495022,1705163447534,-506.83776839,0.00022261,2]
[311495024,1705163447544,-1864.10292207,0.00022261,2]
[311495027,1705163447557,-416.37338939,0.00022261,2]
[311495029,1705163448721,-1959.00368854,0.00022261,2]
[311495030,1705163448732,-4239.48,0.00022261,2]
[311495031,1705163448744,-500.0,0.00022261,2]
[311495032,1705163448754,-500.0,0.00022261,2]
[311495033,1705163448764,-500.0,0.00022261,2]
[311495034,1705163448773,-500.0,0.00022261,2]
[311495035,1705163448784,-500.0,0.00022261,2]
[311495036,1705163448794,-500.0,0.00022261,2]
[311495037,1705163448803,-500.0,0.00022261,2]
[311495038,1705163448813,-421.90757121,0.00022261,2]
[311495039,1705163448823,-546.43,0.00022261,2]
[311495040,1705163448832,-546.43,0.00022261,2]
[311495041,1705163448841,-500.0,0.00022261,2]
[311495042,1705163448851,-500.0,0.00022261,2]
[311495043,1705163448860,-78.15030413,0.00022261,2]
[311495044,1705163448874,-421.84969587,0.00022261,2]
[311495045,1705163448886,-500.0,0.00022261,2]
[311495046,1705163448896,-161.6893547,0.00022261,2]
[311495047,1705163449022,-289.68467765,0.00022261,2]
[311495048,1705163449124,-48.62596765,0.00022261,2]
[311495049,1705163449133,-389.53309591,0.00022261,2]
[311495050,1705163449145,-110.46690409,0.00022261,2]
[311495051,1705163449155,-500.0,0.00022261,2]
[311495052,1705163449165,-500.0,0.00022261,2]
[311495053,1705163449175,-362.02543476,0.00022261,2]
[311495054,1705163449188,-137.97456524,0.00022261,2]
[311495055,1705163449197,-500.0,0.00022261,2]
[311495056,1705163449206,-500.0,0.00022261,2]
[311495057,1705163449215,-500.0,0.00022261,2]
[311495058,1705163449227,-500.0,0.00022261,2]
[311495059,1705163449238,-500.0,0.00022261,2]
[311495060,1705163449247,-500.0,0.00022261,2]
[311495061,1705163449257,-500.0,0.00022261,2]
[311495062,1705163449268,-66.43604163,0.00022261,2]
[311495063,1705163449282,-314.71521952,0.00022261,2]
[311495064,1705163449295,-118.84873885,0.00022261,2]
[311495065,1705163449306,-213.14440681,0.00022261,2]
[311495066,1705163449573,-500.0,0.0002226,2]
[311495067,1705163449584,-500.0,0.0002226,2]
[311495068,1705163449593,-500.0,0.0002226,2]
[311495069,1705163449603,-150.19,0.0002226,2]
[311495070,1705163449612,-286.85559319,0.00022261,2]
[311495071,1705163449623,-500.0,0.00022261,2]
[311495072,1705163449632,-500.0,0.00022261,2]
[311495073,1705163449643,-500.0,0.00022261,2]
[311495074,1705163449652,-500.0,0.00022261,2]
[311495075,1705163449661,-500.0,0.00022261,2]
[311495076,1705163449670,-503.31481148,0.00022261,2]
[311495077,1705163449738,-7.89917806,0.00022261,2]
[311495078,1705163449748,-418.16,0.00022261,2]
[311495079,1705163449757,-500.0,0.00022261,2]
[311495080,1705163449766,-500.0,0.00022261,2]
[311495081,1705163449775,-500.0,0.00022261,2]
[311495082,1705163449784,-500.0,0.00022261,2]
[311495083,1705163449793,-500.0,0.00022261,2]
[311495084,1705163449803,-433.66,0.00022261,2]
[311495085,1705163449814,-500.0,0.00022261,2]
[311495086,1705163449823,-500.0,0.00022261,2]
[311495087,1705163449833,-500.0,0.00022261,2]
[311495088,1705163449843,-500.0,0.00022261,2]
[311495089,1705163449854,-500.0,0.00022261,2]
[311495090,1705163449864,-500.0,0.00022261,2]
[311495091,1705163449874,-500.0,0.00022261,2]
[311495092,1705163449884,-500.0,0.00022261,2]
[311495093,1705163449893,-500.0,0.00022261,2]
[311495094,1705163449902,-300.0,0.00022261,2]
[311495095,1705163449913,-620.03,0.00022261,2]
[311495096,1705163449923,-454.27571543,0.00022261,2]
[311495097,1705163449932,-500.0,0.00022261,2]
[311495098,1705163449946,-512.94132575,0.00022261,2]
[311495099,1705163449955,-500.0,0.00022261,2]
[311495100,1705163449966,-500.0,0.00022261,2]
[311495101,1705163449976,-500.0,0.00022261,2]
[311495102,1705163449985,-500.0,0.00022261,2]
[311495103,1705163449994,-500.0,0.00022261,2]
[311495104,1705163450003,-500.0,0.00022261,2]
[311495105,1705163450013,-500.0,0.00022261,2]
[311495106,1705163450022,-500.0,0.00022261,2]
[311495107,1705163450031,-500.0,0.00022261,2]
[311495108,1705163450041,-500.0,0.00022261,2]
[311495109,1705163450050,-500.0,0.00022261,2]
[311495110,1705163450059,-500.0,0.00022261,2]
[311495111,1705163450068,-500.0,0.00022261,2]
[311495112,1705163450078,-500.0,0.00022261,2]
[311495113,1705163450087,-500.0,0.00022261,2]
[311495114,1705163450097,-500.0,0.00022261,2]
[311495115,1705163450106,-500.0,0.00022261,2]
[311495116,1705163450115,-500.0,0.00022261,2]
[311495117,1705163450124,-500.0,0.00022261,2]
[311495118,1705163450133,-500.0,0.00022261,2]
[311495119,1705163450142,-500.0,0.00022261,2]
[311495120,1705163450152,-500.0,0.00022261,2]
[311495121,1705163450161,-500.0,0.00022261,2]
[311495122,1705163450170,-500.0,0.00022261,2]
[311495123,1705163450179,-545.41012013,0.00022261,2]
[311495124,1705163450191,-500.0,0.00022261,2]
[311495125,1705163450200,-306.5185116,0.00022261,2]
[311495126,1705163450210,-500.0,0.00022261,2]
[311495127,1705163450221,-1177.7496159,0.00022261,2]
[311495128,1705163450231,-155.0,0.00022261,2]
[311495129,1705163450240,-3965.54199293,0.00022261,2]
[311495130,1705163450249,-17187.29865136,0.00022262,2]
[311495131,1705163450261,-255.18433556,0.00022262,2]
[311495132,1705163450273,-18743.43192,0.00022262,2]
[311495133,1705163450305,-547.269995,0.00022262,2]
[311495134,1705163450612,-4.37388506,0.00022258,2]
[311495135,1705163450623,-265.24774142,0.00022258,2]
[311495136,1705163450633,-177.6089,0.00022259,2]
[311495137,1705163450642,-326.6529487,0.00022259,2]
[311495138,1705163450652,-2878.52202274,0.00022259,2]
[311495139,1705163450661,-547.13,0.0002226,2]
[311495140,1705163450670,-500.0,0.0002226,2]
[311495141,1705163450680,-500.0,0.0002226,2]
[311495142,1705163450691,-500.0,0.0002226,2]
[311495143,1705163450700,-500.0,0.00022261,2]
[311495144,1705163450710,-268632.50362193,0.00022262,2]
[311495145,1705163450726,-110422.46258334,0.00022262,2]
[311495146,1705163450961,621.33628027,0.00021369,2]
[311495147,1705163451058,246.70483665,0.00022036,2]
[311495148,1705163480332,5000.0,0.00022161,2]
[311495149,1705163506245,174.59136121,0.00022163,2]
[311495150,1705163527388,600.74021975,0.000229,6]
[311495151,1705163531940,200.0,0.000218,7]
[311495152,1705163534050,500.0,0.000219,7]
[311495153,1705163536159,700.0,0.000225,8]
[311495154,1705163538259,1000.0,0.000226,8]
[311495155,1705163540491,1200.0,0.000227,8]
[311495156,1705163542498,200.0,0.000228,8]
[311495157,1705163544903,200.0,0.000229,8]
[311495160,1705163613900,536.95,0.00021408,2]
[311495161,1705163615752,1250.0,0.00022,3]
[311495162,1705163623811,251.22,0.00019475,2]
[311495163,1705163624046,251.22,0.00021739,2]
[311495164,1705163634430,409.92,0.00021403,2]
[311495165,1705163644406,210.0,0.0002156,2]
[311495166,1705163683173,153.87,0.0002151,2]
[311495167,1705163689420,221.92552108,0.0002216,2]
[311495168,1705163691673,605.40969963,0.0002156,2]
[311495169,1705163696668,152.76744105,0.0002216,2]
[311495170,1705163698075,207.66772168,0.0002216,2]
[311495172,1705163736269,157.04,0.00021323,2]
[311495173,1705163736366,2879.25943105,0.0002216,2]
[311495174,1705163736526,157.04,0.00021856,2]
[311495175,1705163801615,198.5442,0.00022142,2]
[311495176,1705163818514,2132.3834,0.00022159,2]
[311495177,1705163819291,211.74640565,0.0002216,2]
[311495178,1705163871603,1919.50628738,0.0002216,2]
[311495180,1705163887344,152.76744101,0.00022159,2]
[311495181,1705163896646,3002.2839626,0.00022199,2]
[311495182,1705163907833,246.24,0.00021335,2]
[311495183,1705163910471,212.74977871,0.00022199,2]
[311495184,1705163916379,542.71586648,0.00022199,2]
[311495185,1705163921380,370.83678572,0.00022199,2]
[311495186,1705163930353,203.08140272,0.00022199,2]
[311495187,1705163955129,194.5018772,0.0002216,2]
[311495188,1705163963326,30647.44762526,0.00022199,2]
[311495189,1705163967731,709.2121,0.00022159,2]
[311495190,1705163992583,100000.0,0.00022159,2]
[311495191,1705164008140,1279.67085824,0.0002216,2]
[311495192,1705164011320,4631.84687772,0.00022199,2]
[311495193,1705164018182,151.0,0.00022999,7]
[311495194,1705164018470,249.424346,0.00023,7]
[311495195,1705164023470,151.0,0.00022999,7]
[311495196,1705164023747,151.0,0.00023,7]
[311495197,1705164024027,151.0,0.00023,7]
[311495198,1705164029714,151.0,0.00022999,7]
[311495199,1705164029892,151.0,0.00023,7]
[311495200,1705164030167,190.122861,0.00023,7]
[311495201,1705164047688,233.83,0.00019428,2]
[311495202,1705164048084,233.83,0.00021692,2]
[311495203,1705164053410,250.277644,0.00022999,7]
[311495204,1705164053681,250.277644,0.00023,7]
[311495205,1705164054015,250.277644,0.00023,7]
[311495206,1705164056263,250.277644,0.00022999,7]
[311495207,1705164056523,250.277644,0.00023,7]
[311495208,1705164056787,250.277644,0.00023,7]
[311495209,1705164062380,672.06,0.00021346,2]
[311495210,1705164068623,151.0,0.00022999,7]
[311495211,1705164068892,151.0,0.00023,7]
[311495212,1705164069467,151.0,0.00023,7]
[311495213,1705164071555,152.76744101,0.00022158,2]
[311495215,1705164079727,501.15,0.00021332,2]
[311495216,1705164134077,151.0,0.00022984,7]
[311495217,1705164134123,151.0,0.00023,7]
[311495218,1705164134339,151.0,0.00023,7]
[311495219,1705164134849,153.93,0.00021548,2]
[311495220,1705164142295,151.0,0.00022984,7]
[311495221,1705164142561,151.0,0.00023,7]
[311495222,1705164142859,151.0,0.00023,7]
[311495223,1705164143327,853.1139055,0.00022159,2]
[311495224,1705164165920,156.6,0.00021326,2]
[311495225,1705164191612,1835.08451342,0.00022158,2]
[311495226,1705164193623,151.0,0.00022984,7]
[311495227,1705164193887,174.089323,0.00023,7]
[311495228,1705164208620,3843.606654,0.00022984,7]
[311495229,1705164208877,3843.606654,0.00023,7]
[311495230,1705164209186,3843.606654,0.00023,7]
[311495231,1705164211635,3843.606654,0.00022984,7]
[311495232,1705164211916,3843.606654,0.00023,7]
[311495233,1705164212180,3843.606654,0.00023,7]
[311495234,1705164227903,752.717805,0.00022984,7]
[311495235,1705164228036,752.717805,0.00023,7]
[311495236,1705164228425,752.717805,0.00023,7]
[311495237,1705164231543,752.717805,0.00022984,7]
[311495238,1705164231590,752.717805,0.00023,7]
[311495239,1705164231848,752.717805,0.00023,7]
[311495240,1705164235531,152.76744101,0.00022158,2]
[311495241,1705164246578,1830.780666,0.00022984,7]
[311495242,1705164246836,1830.780666,0.00023,7]
[311495243,1705164247347,1830.780666,0.00023,7]
[311495244,1705164249604,1830.780666,0.00022984,7]
[311495245,1705164249892,1830.780666,0.00023,7]
[311495246,1705164250255,1830.780666,0.00023,7]
[311495247,1705164264591,371.645119,0.00022984,7]
[311495248,1705164264882,371.645119,0.00023,7]
[311495249,1705164265143,371.645119,0.00023,7]
[311495250,1705164267742,371.645119,0.00022984,7]
[311495251,1705164268000,371.645119,0.00023,7]
[311495252,1705164268299,371.645119,0.00023,7]
[311495253,1705164278499,568.74260366,0.00022158,2]
[311495254,1705164280872,1152.74678695,0.0002184,2]
[311495255,1705164281180,1152.74678695,0.00022031,2]
[311495256,1705164283093,197.633115,0.00022984,7]
[311495257,1705164283269,197.633115,0.00023,7]
[311495258,1705164283527,197.633115,0.00023,7]
[311495259,1705164285748,197.633115,0.00022984,7]
[311495260,1705164286028,197.633115,0.00023,7]
[311495261,1705164286327,197.633115,0.00023,7]
[311495262,1705164300335,297.790666,0.00022984,7]
[311495263,1705164301175,297.790666,0.00023,7]
[311495264,1705164301291,297.790666,0.00023,7]
[311495265,1705164303845,297.790666,0.00022984,7]
[311495266,1705164304185,297.790666,0.00023,7]
[311495267,1705164304858,297.790666,0.00023,7]
[311495268,1705164306354,250.0,0.00022158,2]
[311495269,1705164319344,244.340187,0.00022984,7]
[311495270,1705164319622,244.340187,0.00023,7]
[311495271,1705164320065,244.340187,0.00023,7]
[311495272,1705164322276,244.340187,0.00022984,7]
[311495273,1705164322531,244.340187,0.00023,7]
[311495274,1705164322986,244.340187,0.00023,7]
[311495275,1705164375309,151.0,0.00022984,7]
[311495276,1705164375605,151.0,0.00023,7]
[311495277,1705164375883,151.0,0.00023,7]
[311495278,1705164381111,151.0,0.00022984,7]
[311495279,1705164381422,151.0,0.00023,7]
[311495280,1705164381671,156.924987,0.00023,7]
[311495281,1705164395246,317.902086,0.00022984,7]
[311495282,1705164395760,317.902086,0.00023,7]
[311495283,1705164395823,317.902086,0.00023,7]
[311495284,1705164395948,152.76744101,0.00022157,2]
[311495285,1705164398018,317.902086,0.00022984,7]
[311495286,1705164398261,317.902086,0.00023,7]
[311495287,1705164398510,317.902086,0.00023,7]
[311495288,1705164402792,1152.74678696,0.00022126,2]
[311495289,1705164403265,152.560826,0.00022984,7]
[311495290,1705164412592,151.0,0.00022984,7]
[311495291,1705164412851,151.0,0.00023,7]
[311495292,1705164413124,151.0,0.00023,7]
[311495293,1705164413664,379.16173578,0.00022157,2]
[311495294,1705164415721,151.0,0.00022984,7]
[311495295,1705164415982,151.0,0.00023,7]
[311495296,1705164416453,151.0,0.00023,7]
[311495297,1705164444473,250.0,0.00022158,2]
[311495298,1705164467548,-300.0,0.000222,2]